fUSD/lending_fUSD_20240212
["ID","MTS","AMOUNT","RATE_DAILY","PERIOD"]
[313889747,1707771046451,-245.26780635,0.00029868,2]
[313889750,1707771046460,-10537.74486602,0.00029868,2]
[313889753,1707771046469,-1833.17502045,0.00029869,2]
[313889756,1707771046478,-582.84742818,0.00029869,2]
[313889759,1707771046487,-1415.27636351,0.00029869,2]
[313889762,1707771046497,-214.47464455,0.00029869,2]
[313889764,1707771046505,-232.92375042,0.00029869,2]
[313889767,1707771046515,-155.0,0.00029869,2]
[313889770,1707771046524,-250.0,0.00029869,2]
[313889773,1707771046534,-155.0,0.00029869,2]
[313889776,1707771046543,-268.96634037,0.00029869,2]
[313889779,1707771046553,-201.60284664,0.00029869,2]
[313889782,1707771046563,-695.69995506,0.00029869,2]
[313889785,1707771046573,-4587.89451303,0.0002987,2]
[313889788,1707771046582,-22297.39962978,0.00029871,2]
[313889791,1707771046591,-22297.39962978,0.00029889,2]
[313889794,1707771046601,-22297.39962978,0.00029906,2]
[313889798,1707771046610,-22297.39962978,0.00029924,2]
[313889801,1707771046619,-340.30759508,0.00029941,2]
[313889803,1707771046628,-6621.13046449,0.00029942,2]
[313889806,1707771046640,-2271.562753,0.00029942,2]
[313889923,1707771057363,366.67953504,0.00023,2]
[313889924,1707771058872,164.90943207,0.00023,2]
[313889925,1707771069903,199468.41103289,0.00023,2]
[313889926,1707771069927,799659.50417509,0.00023,2]
[313889927,1707771073575,2196444.84987622,0.0002278,2]
[313889928,1707771121483,272.07015501,0.00022322,2]
[313889929,1707771174133,436.93155766,0.0002,2]
[313889931,1707771219565,1955.67129715,0.0002,2]
[313889932,1707771239453,1303.77,0.00022393,2]
[313889933,1707771267517,574.84,0.00022178,2]
[313889934,1707771289854,404.05961647,0.000194,2]
[313889935,1707771292582,500.0,0.00021986,2]
[313889936,1707771305818,404.05961647,0.00021513,2]
[313889937,1707771309288,421.92602062,0.00021866,2]
[313889938,1707771312524,404.41481397,0.00022178,2]
[313889939,1707771321304,922.44703628,0.00020499,2]
[313889940,1707771334015,850.15341176,0.00022178,2]
[313889941,1707771337721,155.0,0.00022178,2]
[313889942,1707771341285,23900.0,0.00021888,2]
[313889959,1707771352366,268.83625673,0.0002178,2]
[313889960,1707771353250,250.0,0.00021918,2]
[313889961,1707771353995,781.20702131,0.00022178,2]
[313889962,1707771357708,155.0,0.00022178,2]
[313889963,1707771369999,849.93878563,0.00022178,2]
[313889964,1707771375710,155.0,0.00022178,2]
[313889965,1707771378307,1186.25,0.00021797,2]
[313889966,1707771390019,849.93878563,0.00022178,2]
[313889967,1707771397716,155.0,0.00022178,2]
[313889968,1707771407753,597.42,0.0001991,2]
[313889969,1707771408011,850.15341176,0.00022178,2]
[313889970,1707771408199,597.42,0.00022174,2]
[313889971,1707771424360,744.42,0.00021827,2]
[313889972,1707771428014,849.7241595,0.00021797,2]
[313889973,1707771447315,223.06,0.00021938,2]
[313889974,1707771447510,223.06,0.00021999,2]
[313889975,1707771447706,223.06,0.00022059,2]
[313889976,1707771447925,223.06,0.00022119,2]
[313889977,1707771448196,223.06,0.00022179,2]
[313889978,1707771448395,223.06,0.00022239,2]
[313889979,1707771448803,223.06,0.00022299,2]
[313889980,1707771448875,223.06,0.0002236,2]
[313889981,1707771449033,448.69867796,0.0002027,2]
[313889982,1707771449164,200.0,0.00021775,2]
[313889983,1707771465042,190.59320292,0.0002027,2]
[313889984,1707771483412,165.99,0.00021722,2]
[313889985,1707771484979,17698.82,0.00021918,2]
[313889986,1707771486080,200.0,0.00021718,2]
[313889987,1707771488874,150.0,0.0002178,2]
[313889988,1707771489297,421.92602062,0.00021864,2]
[313889989,1707771490166,220.04320149,0.00022328,2]
[313889990,1707771509293,542.85621183,0.00021769,2]
[313889991,1707771509596,178.47,0.00021713,2]
[313889992,1707771539526,946.02,0.00021702,2]
[313889993,1707771541621,19771.93,0.00021702,2]
[313889994,1707771542516,724.62,0.00021702,2]
[313889995,1707771545215,1937.69,0.00021685,2]
[313889996,1707771565536,1677.30029758,0.00022315,2]
[313889997,1707771577050,585.05794208,0.00020178,2]
[313889998,1707771630771,250.0,0.00021613,2]
[313889999,1707771634719,177.24,0.0002178,2]
[313890000,1707771635931,177.24,0.00022328,2]
[313890001,1707771640845,500.0,0.0002178,2]
[313890002,1707771643304,516.82,0.0002178,2]
[313890003,1707771651756,155.0,0.00020178,2]
[313890004,1707771652404,150.0,0.00021621,2]
[313890005,1707771653303,175.02808395,0.00020178,2]
[313890006,1707771658771,704.09301398,0.00020157,2]
[313890007,1707771658919,158.04578453,0.00020178,2]
[313890008,1707771659080,308.0680061,0.00020178,2]
[313890009,1707771661337,200.0721745,0.00020178,2]
[313890010,1707771663120,448.69867796,0.00020157,2]
[313890011,1707771663751,200.32610195,0.00020156,2]
[313890012,1707771667708,214.6,0.00021629,2]
[313890013,1707771676394,-229.57746302,0.00022406,2]
[313890014,1707771676414,-155.0,0.00022406,2]
[313890015,1707771676434,-250.13493557,0.00022407,2]
[313890016,1707771676454,-284.31905777,0.00022407,2]
[313890017,1707771676474,-1051.09278961,0.00022408,2]
[313890018,1707771676497,-1957.34969805,0.00022409,2]
[313890019,1707771676517,-1072.52605598,0.00022409,2]
[313890020,1707771681060,448.69867796,0.00020004,2]
[313890021,1707771684329,-155.0,0.00022405,2]
[313890022,1707771684349,-155.0,0.00022405,2]
[313890023,1707771684369,-159.68615392,0.00022405,2]
[313890024,1707771684388,-1530.31384608,0.00022409,2]
[313890025,1707771690365,264.71552263,0.00021779,2]
[313890026,1707771699059,447.48832438,0.00020004,2]
[313890027,1707771702973,1003.39357551,0.00022379,2]
[313890028,1707771715060,1499.22277298,0.00022379,2]
[313890029,1707771715354,170.88,0.00017291,2]
[313890030,1707771721440,-155.0,0.00022408,2]
[313890031,1707771721460,-710.0,0.00022409,2]
[313890032,1707771726229,150.0,0.00021779,2]
[313890033,1707771727538,150.0,0.00022327,2]
[313890034,1707771728182,1609.3272,0.00022312,2]
[313890035,1707771732909,2000.0,0.00021678,2]
[313890036,1707771738945,201.60865348,0.0002238,2]
[313890037,1707771749263,164.90943207,0.00017291,2]
[313890038,1707771753191,-155.0,0.00022408,2]
[313890039,1707771753212,-19419.48501527,0.00022409,2]
[313890040,1707771753232,-2840.2816044,0.0002241,2]
[313890041,1707771753254,-150.0,0.00022414,2]
[313890042,1707771753274,-150.0,0.00022414,2]
[313890043,1707771753296,-223.06,0.0002242,2]
[313890044,1707771753315,-2387.0,0.00022447,2]
[313890045,1707771753336,-497.29265858,0.00022448,2]
[313890046,1707771753357,-499.99,0.00022448,2]
[313890047,1707771753377,-229.57746302,0.00022476,2]
[313890048,1707771753397,-155.0,0.00022476,2]
[313890049,1707771753416,-278.06640714,0.00022476,2]
[313890050,1707771753437,-162.22964649,0.00022476,2]
[313890051,1707771753457,-158.25483065,0.00022476,2]
[313890052,1707771753477,-172694.76237445,0.00022476,2]
[313890053,1707771756341,500.0,0.00021689,2]
[313890054,1707771764968,169.97,0.0002226,2]
[313890055,1707771767931,10704.87833871,0.0002225,2]
[313890056,1707771785868,57784.52815888,0.00022401,2]
[313890057,1707771785888,2803.0,0.00022401,2]
[313890058,1707771812372,861.01914996,0.0002225,2]
[313890059,1707771812950,159.86852531,0.0002225,2]
[313890060,1707771813821,1028.25413819,0.0002225,2]
[313890061,1707771814568,280.83372,0.0002135,7]
[313890062,1707771814653,6114.15975207,0.0002225,2]
[313890063,1707771815570,155.0,0.0002225,2]
[313890064,1707771818399,155.0,0.0002225,2]
[313890065,1707771818571,284.18685088,0.0002225,2]
[313890066,1707771821067,448.69867796,0.00020001,2]
[313890067,1707771823428,1118.3497894,0.00020227,2]
[313890068,1707771823731,500.0,0.000217,3]
[313890069,1707771826788,155.0,0.00020226,2]
[313890070,1707771827508,151.53500185,0.00022374,2]
[313890071,1707771828641,1122.13482936,0.0002225,2]
[313890072,1707771830225,250.0,0.00021918,2]
[313890073,1707771830333,312.772429,0.0002225,2]
[313890074,1707771831355,267.3048362,0.0002225,2]
[313890075,1707771831817,944.43797012,0.0002225,2]
[313890076,1707771832481,151.53500169,0.0002239,2]
[313890077,1707771834402,156.83136019,0.0002225,2]
[313890078,1707771847082,448.69867796,0.0002,2]
[313890079,1707771850523,720000.0,0.000224,2]
[313890080,1707771850785,254.50392666,0.00020225,2]
[313890081,1707771858068,630.43,0.00019757,2]
[313890082,1707771858273,630.43,0.00022021,2]
[313890083,1707771861711,150.0,0.0002178,2]
[313890084,1707771863072,448.69867796,0.0002,2]
[313890085,1707771864079,850.15341176,0.0002225,2]
[313890086,1707771874254,201.60865348,0.00022375,2]
[313890087,1707771880457,185.85953716,0.00022247,2]
[313890088,1707771883649,23900.0,0.00021652,2]
[313890089,1707771886077,850.15341176,0.0002225,2]
[313890090,1707771887085,448.01166372,0.0002,2]
[313890091,1707771894633,1420.99548733,0.00022375,2]
[313890092,1707771904083,849.50953337,0.00021652,2]
[313890093,1707771920093,849.93878563,0.00021652,2]
[313890094,1707771923847,-151.53500169,0.00022406,2]
[313890095,1707771923870,-151.53500169,0.00022422,2]
[313890096,1707771923899,-151.53500169,0.00022438,2]
[313890097,1707771923922,-151.53500169,0.00022455,2]
[313890098,1707771923945,-151.53500169,0.00022471,2]
[313890099,1707771923966,-1370.60605976,0.00022472,2]
[313890100,1707771923988,-1483.6619,0.00022473,2]
[313890101,1707771924009,-533.66816842,0.00022473,2]
[313890102,1707771924031,-49628.08710858,0.00022473,2]
[313890103,1707771924053,-3955.88494142,0.00022474,2]
[313890104,1707771924075,-42270.41681337,0.00022474,2]
[313890105,1707771934799,573.76,0.0002167,2]
[313890106,1707771941036,169.29714288,0.00021648,2]
[313890107,1707771944052,2526.22,0.00021918,2]
[313890108,1707771945244,212.71474863,0.00019703,2]
[313890109,1707771953426,191.59,0.00021825,2]
[313890110,1707771953660,191.59,0.00021885,2]
[313890111,1707771953897,191.59,0.00021945,2]
[313890112,1707771954113,191.59,0.00022005,2]
[313890113,1707771954336,191.59,0.00022065,2]
[313890114,1707771954560,191.59,0.00022125,2]
[313890115,1707771954793,191.59,0.00022185,2]
[313890116,1707771954820,179.22,0.00021663,2]
[313890117,1707771955003,191.59,0.00022245,2]
[313890118,1707771955223,191.59,0.00022304,2]
[313890119,1707771955433,191.59,0.00022364,2]
[313890120,1707771955634,4328.89,0.00021663,2]
[313890121,1707771970270,200.0,0.0002166,2]
[313890122,1707771974911,6998.56,0.00021918,2]
[313890123,1707771987499,280.2,0.00021662,2]
[313890124,1707771987947,22022.32491733,0.00022247,2]
[313890125,1707771992466,497.29265858,0.00022247,2]
[313890126,1707771994627,1614.74,0.00021596,2]
[313890127,1707772004773,200.0,0.00021588,2]
[313890128,1707772004823,402.21,0.00021588,2]
[313890129,1707772036556,165.56,0.00021575,2]
[313890130,1707772038557,2705.0,0.00021575,2]
[313890131,1707772054545,214.52,0.00021918,2]
[313890132,1707772059013,323.9707,0.00022374,2]
[313890133,1707772078093,1000.0,0.00021561,2]
[313890134,1707772085356,250.0,0.00021561,2]
[313890135,1707772108250,229.9,0.0002164,2]
[313890136,1707772118662,150.0,0.00021572,2]
[313890137,1707772130798,200.0,0.00021569,2]
[313890138,1707772168472,182.8,0.00021586,2]
[313890145,1707772181968,2000.0,0.00021586,2]
[313890146,1707772188485,184.15,0.00021582,2]
[313890151,1707772218181,161.62,0.00021584,2]
[313890184,1707772231863,-155.0,0.00022413,2]
[313890186,1707772231872,-155.0,0.00022414,2]
[313890189,1707772231882,-250.13493557,0.00022414,2]
[313890192,1707772231891,-1957.34969805,0.00022414,2]
[313890195,1707772231900,-1051.09278961,0.00022414,2]
[313890198,1707772231910,-155.0,0.00022415,2]
[313890200,1707772231919,-284.31905777,0.00022415,2]
[313890202,1707772231928,-159.68615392,0.00022415,2]
[313890204,1707772231938,-150.0,0.00022417,2]
[313890206,1707772231947,-150.0,0.00022417,2]
[313890208,1707772231956,-49628.08710858,0.00022421,2]
[313890210,1707772231966,-5870.96628339,0.00022422,2]
[313890212,1707772231975,-191.59,0.00022424,2]
[313890214,1707772231984,-214.49272054,0.00022444,2]
[313890216,1707772231994,-2387.0,0.00022452,2]
[313890218,1707772232003,-158.25483065,0.00022471,2]
[313890220,1707772232012,-2840.2816044,0.00022471,2]
[313890222,1707772232021,-933.03,0.00022471,2]
[313890224,1707772232030,-1364.64150433,0.00022473,2]
[313890226,1707772232039,-499.99,0.00022473,2]
[313890228,1707772232048,-937.3048118,0.00022475,2]
[313890231,1707772232068,-191.59,0.00022484,2]
[313890234,1707772232079,-151.53500169,0.00022487,2]
[313890236,1707772232089,-151.53500169,0.00022503,2]
[313890238,1707772232099,-214.49272053,0.00022504,2]
[313890240,1707772232109,-151.53500169,0.00022519,2]
[313890242,1707772232119,-8369.71780117,0.00022532,2]
[313890244,1707772232129,-151.53500169,0.00022535,2]
[313890246,1707772232139,-191.59,0.00022544,2]
[313890248,1707772232149,-164.15,0.00022545,2]
[313890250,1707772232159,-416.38,0.00022545,2]
[313890252,1707772232170,-151.53500169,0.00022551,2]
[313890253,1707772232180,-1186.66,0.00022554,2]
[313890254,1707772232190,-214.49272053,0.00022564,2]
[313890255,1707772232200,-151.53500169,0.00022567,2]
[313890256,1707772232211,-691.95051026,0.0002258,2]
[313890257,1707772232222,-151.53500169,0.00022583,2]
[313890259,1707772232232,-151.53500169,0.00022599,2]
[313890261,1707772232242,-191.59,0.00022604,2]
[313890263,1707772232252,-151.53500169,0.00022616,2]
[313890265,1707772232262,-214.49272053,0.00022623,2]
[313890266,1707772232272,-151.53500169,0.00022632,2]
[313890268,1707772232283,-151.53500169,0.00022648,2]
[313890270,1707772232293,-200.11647614,0.00022648,2]
[313890272,1707772232303,-732.05,0.00022652,2]
[313890274,1707772232314,-726.41,0.00022654,2]
[313890276,1707772232325,-713.47,0.00022655,2]
[313890278,1707772232335,-716.57,0.00022655,2]
[313890280,1707772232344,-721.29,0.00022659,2]
[313890282,1707772232355,-155.92143527,0.00022663,2]
[313890284,1707772232364,-191.59,0.00022664,2]
[313890286,1707772232374,-151.53500169,0.00022664,2]
[313890288,1707772232383,-454.96011402,0.00022669,2]
[313890290,1707772232395,-386.48141651,0.00022676,2]
[313890291,1707772232405,-5470.72039133,0.00022676,2]
[313890293,1707772232416,-358.39820342,0.00022676,2]
[313890295,1707772232426,-7719.89390289,0.00022679,2]
[313890297,1707772232436,-151.53500169,0.0002268,2]
[313890299,1707772232445,-214.49272053,0.00022683,2]
[313890301,1707772232455,-229.9,0.00022722,2]
[313890303,1707772232466,-191.59,0.00022723,2]
[313890305,1707772232476,-454.96011402,0.0002277,2]
[313890307,1707772232486,-454.96011402,0.0002277,2]
[313890310,1707772232500,-310.0,0.00022774,2]
[313890312,1707772232510,-6428.03070752,0.00022774,2]
[313890314,1707772232520,-1225.79714716,0.00022775,2]
[313890315,1707772232530,-155.0,0.00022775,2]
[313890317,1707772232540,-231.33733691,0.00022775,2]
[313890319,1707772232550,-3310.28047842,0.00022775,2]
[313890321,1707772232560,-1062395.69671419,0.00022775,2]
[313890323,1707772232570,-1046.4381061,0.00022776,2]
[313890325,1707772232580,-12602.06568177,0.00022776,2]
[313890327,1707772232591,-1209.8078839,0.00022777,2]
[313890330,1707772232601,-1107.77029554,0.00022778,2]
[313890332,1707772232610,-6933.43911118,0.00022778,2]
[313890334,1707772232620,-155.0,0.00022778,2]
[313890335,1707772232630,-171.21567378,0.00022779,2]
[313890337,1707772232639,-155.0,0.00022779,2]
[313890339,1707772232649,-22096.72861841,0.00022779,2]
[313890342,1707772232664,-12423.43234696,0.00022779,2]
[313890345,1707772232686,-11170.68234025,0.00022779,2]
[313890347,1707772232698,-3121.81685962,0.00022779,2]
[313890349,1707772232707,-150.0,0.00022779,2]
[313890351,1707772232717,-150.0,0.00022779,2]
[313890352,1707772232726,-1989.22430888,0.0002278,2]
[313890355,1707772232738,-37661.66439496,0.0002278,2]
[313890357,1707772232750,-596.48578081,0.0002278,2]
[313890359,1707772232766,-1077.35151425,0.0002278,2]
[313890362,1707772232778,-3487.66457672,0.0002278,2]
[313890364,1707772232795,-601914.45576849,0.0002278,2]
[313890366,1707772232808,-97612.42386234,0.0002278,2]
[313890370,1707772232829,-5018.4,0.0002278,2]
[313890372,1707772232842,-10037.8,0.0002278,2]
[313890416,1707772237887,-229.57746302,0.00022413,2]
[313890417,1707772237897,-5593.82253697,0.0002278,2]
[313890418,1707772238054,-108669.1711183,0.0002278,2]
[313890419,1707772238116,-7663.32333416,0.0002278,2]
[313890420,1707772238172,-865.5818297,0.0002278,2]
[313890421,1707772238231,-9949.30415172,0.0002278,2]
[313890422,1707772238243,-752194.67883556,0.0002278,2]
[313890423,1707772238252,-2324973.32388327,0.0002278,2]
[313890424,1707772238261,-191.59,0.00022783,2]
[313890425,1707772238271,-191.59,0.00022843,2]
[313890426,1707772238281,-354.24,0.00022876,2]
[313890427,1707772238291,-150.0,0.00022899,2]
[313890428,1707772238304,-150.0,0.00022899,2]
[313890429,1707772238314,-677491.85015336,0.000229,3]
[313890430,1707772238325,-453178.0895026,0.000229,2]
[313890431,1707772238334,-191.59,0.00022903,2]
[313890432,1707772238344,-191.59,0.00022963,2]
[313890434,1707772238353,-500.0,0.00022999,2]
[313890436,1707772238363,-500.0,0.00022999,2]
[313890438,1707772238373,-572.36542114,0.00022999,2]
[313890439,1707772238383,-500.0,0.00022999,2]
[313890441,1707772238393,-500.0,0.00022999,2]
[313890443,1707772238402,-500.0,0.00022999,2]
[313890446,1707772238411,-624.29325437,0.00022999,2]
[313890449,1707772238421,-500.0,0.00022999,2]
[313890451,1707772238430,-500.0,0.00022999,2]
[313890453,1707772238440,-339.1917223,0.00022999,2]
[313890455,1707772238449,-265.41778273,0.00022999,2]
[313890457,1707772238458,-500.0,0.00022999,2]
[313890459,1707772238468,-500.0,0.00022999,2]
[313890461,1707772238477,-500.0,0.00022999,2]
[313890462,1707772238486,-500.0,0.00022999,2]
[313890464,1707772238495,-500.0,0.00022999,2]
[313890466,1707772238505,-219.35391169,0.00022999,2]
[313890468,1707772238514,-500.0,0.00022999,2]
[313890470,1707772238524,-500.0,0.00022999,2]
[313890472,1707772238533,-500.0,0.00022999,2]
[313890473,1707772238542,-196.41414139,0.00022999,2]
[313890475,1707772238552,-500.0,0.00022999,2]
[313890476,1707772238561,-635.84970381,0.00022999,2]
[313890477,1707772238572,-500.0,0.00022999,2]
[313890478,1707772238581,-500.0,0.00022999,2]
[313890479,1707772238591,-500.0,0.00022999,2]
[313890480,1707772238601,-500.0,0.00022999,2]
[313890481,1707772238698,-500.0,0.00022999,2]
[313890482,1707772238707,-500.0,0.00022999,2]
[313890484,1707772238717,-500.0,0.00022999,2]
[313890486,1707772238726,-500.0,0.00022999,2]
[313890488,1707772238735,-242.85775935,0.00022999,2]
[313890490,1707772238744,-150.0,0.00022999,2]
[313890492,1707772238753,-150.0,0.00022999,2]
[313890494,1707772238762,-562.61765638,0.00023,3]
[313890496,1707772238772,-2606.90049886,0.00023,2]
[313890498,1707772238781,-1862696.4799133,0.00023,2]
[313890581,1707772241221,-271.13255427,0.00023,2]
[313890582,1707772241232,-3335.72644369,0.00023,2]
[313890583,1707772241280,-2116.66488002,0.00023,2]
[313890584,1707772241337,-25094.0,0.00023,2]
[313890600,1707772242117,-0.88305276,0.00023,2]
[313890601,1707772242130,-50186.94395188,0.00023,2]
[313890602,1707772242142,-506.34076632,0.00023,2]
[313890603,1707772242166,-423.305,0.00023,2]
[313890604,1707772242178,-401.08952125,0.00023,2]
[313890609,1707772242945,-736.98859078,0.00023,2]
[313890611,1707772242957,-5016.11109999,0.00023,2]
[313890616,1707772243003,-1755.33328583,0.00023,2]
[313890617,1707772243015,-1169.1486895,0.00023,2]
[313890618,1707772243025,-5179.28057025,0.00023,2]
[313890619,1707772243068,-14469.73198142,0.00023,2]
[313890620,1707772243080,-15350.43748782,0.00023,2]
[313890621,1707772243091,-365.33057955,0.00023,2]
[313890622,1707772243137,-9498.10814416,0.00023,2]
[313890623,1707772243257,-397.21846895,0.00023,2]
[313890624,1707772243269,-78472.81297308,0.00023,2]
[313890625,1707772243317,-162.22964649,0.00022999,2]
[313890627,1707772243326,-2841.73534193,0.00023,2]
[313890628,1707772243337,-1233.37756266,0.00023,2]
[313890629,1707772243349,-21066.04259999,0.00023,2]
[313890630,1707772243360,-4090.85749679,0.00023,2]
[313890657,1707772245901,-155.18134939,0.00022999,2]
[313890659,1707772245910,-155.0,0.00022999,2]
[313890661,1707772245919,-155.0,0.00022999,2]
[313890663,1707772245928,-167882.72021001,0.00023,2]
[313890664,1707772245938,-300.0,0.0002301,2]
[313890665,1707772245947,-500.0,0.00023014,2]
[313890666,1707772245956,-150.0,0.000231,2]
[313890667,1707772245966,-1614.74,0.0002324,2]
[313890668,1707772245977,-174.6,0.00023782,2]
[313890669,1707772245986,-229.9,0.00023804,2]
[313890670,1707772245996,-178.47,0.00023884,2]
[313890671,1707772246006,-202.17515354,0.00024,2]
[313890672,1707772246016,-7719.89390286,0.00024083,2]
[313890673,1707772246025,-1000.0,0.00024256,2]
[313890674,1707772246034,-630.43,0.00024285,2]
[313890675,1707772246044,-182.8,0.00024326,2]
[313890676,1707772246053,-300.0,0.0002438,2]
[313890677,1707772246062,-250.0,0.00024658,2]
[313890678,1707772246071,-210.0,0.00024659,2]
[313890679,1707772246081,-1614.74,0.00024884,2]
[313890680,1707772246090,-229.9,0.00024886,2]
[313890681,1707772246099,-1030.99523291,0.00025,2]
[313890682,1707772246108,-1909.75102483,0.00025,2]
[313890683,1707772246117,-946.31124793,0.00025,2]
[313890684,1707772246127,-305.15013947,0.00025,2]
[313890685,1707772246136,-1256.25370781,0.00025,2]
[313890686,1707772246145,-938.35728729,0.00025,2]
[313890687,1707772246154,-697.82424559,0.00025,2]
[313890688,1707772246164,-1592.09246113,0.00025,2]
[313890689,1707772246175,-168.29725722,0.00025,2]
[313890690,1707772246185,-324.4968952,0.00025,2]
[313890691,1707772246196,-511.82527856,0.00025,2]
[313890692,1707772246206,-2819.96757964,0.00025,2]
[313890693,1707772246217,-550.0,0.00025,3]
[313890694,1707772246229,-3413.807001,0.00025,2]
[313890695,1707772246240,-154.77843714,0.0002509,2]
[313890696,1707772246251,-3136.11889785,0.000251,2]
[313890697,1707772246260,-174.6,0.00025465,2]
[313890698,1707772246270,-7719.89390286,0.00025487,2]
[313890699,1707772246280,-229.9,0.00025968,2]
[313890700,1707772246295,-178.47,0.00026056,2]
[313890701,1707772246304,-1614.74,0.00026528,2]
[313890702,1707772246314,-630.43,0.00026549,2]
[313890703,1707772246323,-7719.89390286,0.00026891,2]
[313890704,1707772246333,-1000.0,0.00026951,2]
[313890705,1707772246342,-12923.47112443,0.00027,2]
[313890706,1707772246352,-600.0,0.00027,3]
[313890707,1707772246362,-12060.21193095,0.00027,2]
[313890709,1707772246371,-174.6,0.00027147,2]
[313890711,1707772246382,-155.0,0.00027397,2]
[313890713,1707772246392,-1861.86,0.00027397,2]
[313890715,1707772246401,-500.0,0.000274,2]
[313890717,1707772246411,-12976.5738992,0.000275,2]
[313890719,1707772246420,-1861.86,0.00027556,2]
[313890721,1707772246429,-1861.86,0.00027714,2]
[313890723,1707772246438,-1861.86,0.00027872,2]
[313890725,1707772246447,-360.40495133,0.00027874,2]
[313890727,1707772246457,-13107.55226154,0.00027996,2]
[313890729,1707772246466,-2395.69999998,0.00027997,2]
[313890731,1707772246476,-691.57738315,0.00028,2]
[313890733,1707772246484,-154408.54036673,0.00028,2]
[313890735,1707772246493,-179.193106,0.00028,2]
[313890737,1707772246503,-1861.86,0.0002803,2]
[313890739,1707772246512,-150.0,0.0002817,2]
[313890741,1707772246521,-1614.74,0.00028171,2]
[313890743,1707772246530,-1861.86,0.00028189,2]
[313890745,1707772246539,-7719.89390286,0.00028295,2]
[313890746,1707772246548,-1861.86,0.00028347,2]
[313890747,1707772246557,-1861.86,0.00028505,2]
[313890748,1707772246566,-1861.86,0.00028664,2]
[313890749,1707772246575,-155.0,0.00028767,2]
[313890750,1707772246584,-630.43,0.00028813,2]
[313890751,1707772246593,-1861.86,0.00028822,2]
[313890752,1707772246603,-174.6,0.00028829,2]
[313890753,1707772246612,-328.10795121,0.00029,2]
[313890754,1707772246621,-650.0,0.00029,3]
[313890755,1707772246630,-1434.43529905,0.0002938,2]
[313890756,1707772246639,-1000.0,0.00029646,2]
[313890757,1707772246649,-7719.89390286,0.00029699,2]
[313890758,1707772246658,-2000.0,0.00029735,3]
[313890759,1707772246667,-1434.43529905,0.00029749,2]
[313890760,1707772246677,-176.48526302,0.000298,2]
[313890761,1707772246687,-1614.74,0.00029815,2]
[313890762,1707772246696,-192.68429927,0.00029899,2]
[313890763,1707772246705,-3643.31753463,0.00029899,2]
[313890764,1707772246715,-196.77318394,0.00029899,2]
[313890765,1707772246725,-323.50443899,0.00029899,2]
[313890766,1707772246734,-18829.51272272,0.000299,2]
[313890767,1707772246752,-995.78387492,0.000299,2]
[313890768,1707772246763,-1426.92087624,0.000299,2]
[313890769,1707772246775,-20093.22156,0.000299,2]
[313890770,1707772246833,-230.98859655,0.00022999,2]
[313890771,1707772246842,-30326.51981961,0.000299,2]
[313890772,1707772246852,-6422.65592424,0.0002996,2]
[313890773,1707772246861,-217.02687567,0.00029968,2]
[313890774,1707772246871,-622.49852888,0.00029997,2]
[313890775,1707772246880,-208.7339439,0.00029998,2]
[313890776,1707772246889,-155.72509307,0.00029998,2]
[313890777,1707772246899,-155.0,0.00029998,2]
[313890778,1707772246908,-155.0,0.00029998,2]
[313890779,1707772246918,-203.39653031,0.00029998,2]
[313890780,1707772246927,-155.11976048,0.00029998,2]
[313890781,1707772246936,-2577.33492729,0.00029998,2]
[313890782,1707772246948,-659.19999999,0.00029998,2]
[313890783,1707772246961,-884.58374321,0.00029998,2]